bitfinex-derivatives/quotes_SOLF0:USTF0_20241127
["timestamp","ask_amount","ask_price","bid_price","bid_amount"]
[1732683242262,2.1712,230.37,230.33,2.1715]
[1732683242464,2.44,230.45,230.33,6.95637628]
[1732683242665,6.95637628,230.43,230.35,6.95637628]
[1732683242964,2.1707,230.42,230.37,6.95637628]
[1732683243170,17.58007832,230.46,230.35,6.95637628]
[1732683243364,6.95637628,230.43,230.35,6.95637628]
[1732683243963,2.1708,230.41,230.36,2.1712]
[1732683245463,2.1706,230.43,230.37,2.1711]
[1732683245667,9.12697628,230.43,230.37,2.1711]
[1732683245868,6.95637628,230.43,230.35,6.95637628]
[1732683246273,2.1707,230.42,230.36,2.1712]
[1732683246467,6.95637628,230.43,230.34,2.5451]
[1732683246664,2.1709,230.39,230.34,2.5451]
[1732683246863,6.95637628,230.39,230.34,2.5451]
[1732683247062,17.58007832,230.46,230.34,2.5451]
[1732683247063,6.95637628,230.41,230.34,2.5451]
[1732683247267,2.171,230.38,230.34,2.5451]
[1732683247666,6.95637628,230.41,230.34,2.5451]
[1732683248669,2.1711,230.38,230.34,2.5451]
[1732683248870,2.1711,230.38,230.31,9.12797628]
[1732683249275,2.1709,230.39,230.33,2.1715]
[1732683250076,9.12727628,230.4,230.34,2.1714]
[1732683251674,2.171,230.38,230.32,2.1716]
[1732683251876,6.95637628,230.38,230.29,4.883]
[1732683252077,6.95637628,230.34,230.29,2.443]
[1732683252376,2.1716,230.33,230.29,2.443]
[1732683252777,2.1716,230.32,230.26,2.1722]
[1732683253175,6.95637628,230.34,230.25,2.44]
[1732683253373,6.95637628,230.32,230.25,6.95637628]
[1732683254377,6.95637628,230.34,230.25,6.95637628]
[1732683254681,2.1717,230.32,230.26,2.1722]
[1732683255077,2.1717,230.31,230.26,2.1722]
[1732683255278,2.1717,230.31,230.25,6.95637628]
[1732683255582,2.1717,230.31,230.24,0.2059]
[1732683255782,2.1717,230.31,230.26,6.95637628]
[1732683256173,2.44,230.38,230.26,6.95637628]
[1732683256379,6.95637628,230.36,230.28,6.95637628]
[1732683256974,2.1715,230.33,230.28,6.95637628]
[1732683257182,6.95637628,230.36,230.28,6.95637628]
[1732683257382,2.44,230.38,230.28,6.95637628]
[1732683257578,6.95637628,230.35,230.28,6.95637628]
[1732683258882,6.95637628,230.37,230.3,6.95637628]
[1732683259189,6.95637628,230.39,230.3,6.95637628]
[1732683260283,2.1712,230.36,230.3,9.12817628]
[1732683260786,6.95637628,230.39,230.3,6.95637628]
[1732683260982,2.1713,230.36,230.32,6.95637628]
[1732683261183,2.44,230.4,230.34,6.95637628]
[1732683261479,3.4954,230.43,230.36,9.12747628]
[1732683261681,3.4954,230.43,230.36,6.95637628]
[1732683261682,6.95637628,230.42,230.36,6.95637628]
[1732683263281,9.12707628,230.42,230.36,6.95637628]
[1732683264081,9.12707628,230.42,230.35,2.1713]
[1732683264477,9.12707628,230.42,230.35,9.12767628]
[1732683265283,2.1708,230.41,230.35,9.12767628]
[1732683266084,2.171,230.39,230.32,2.1716]
[1732683266282,6.95637628,230.4,230.31,9.56527628]
[1732683266678,2.171,230.38,230.31,11.73687628]
[1732683266883,6.95637628,230.4,230.31,4.7805]
[1732683267084,6.95637628,230.4,230.32,6.95637628]
[1732683267483,2.44,230.44,230.32,6.95637628]
[1732683267684,6.95637628,230.42,230.34,6.95637628]
[1732683267991,6.95637628,230.42,230.36,2.1712]
[1732683268179,6.95637628,230.42,230.36,6.95637628]
[1732683268385,2.44,230.44,230.34,6.95637628]
[1732683268587,2.1707,230.43,230.37,2.1711]
[1732683268979,6.95637628,230.42,230.31,2.6089]
[1732683269178,6.95637628,230.42,230.34,6.95637628]
[1732683269783,2.44,230.44,230.24,6.20285731]
[1732683269984,6.95637628,230.31,230.24,0.2059]
[1732683270387,9.12797628,230.33,230.24,2.3782]
[1732683270589,6.95637628,230.33,230.26,6.95637628]
[1732683270789,2.44,230.37,230.26,6.95637628]
[1732683270989,6.95637628,230.35,230.26,6.95637628]
[1732683271389,2.1715,230.34,230.26,6.95637628]
[1732683271789,6.95637628,230.35,230.26,6.95637628]
[1732683272286,6.95637628,230.31,230.24,7.16227628]
[1732683273388,9.12807628,230.31,230.24,7.16227628]
[1732683273984,9.12807628,230.31,230.24,6.95637628]
[1732683274186,6.95637628,230.31,230.24,6.95637628]
[1732683274988,2.44,230.37,230.24,6.95637628]
[1732683275189,6.95637628,230.32,230.24,6.95637628]
[1732683275389,2.1717,230.31,230.24,6.95637628]
[1732683275590,6.95637628,230.34,230.26,6.95637628]
[1732683275789,6.95637628,230.34,230.28,6.95637628]
[1732683275984,9.12787628,230.34,230.28,6.95637628]
[1732683276185,6.95637628,230.32,230.25,6.95637628]
[1732683277284,2.1718,230.3,230.25,6.95637628]
[1732683278290,2.44,230.35,230.27,6.95637628]
[1732683278492,2.1715,230.34,230.25,2.1722]
[1732683278795,2.1715,230.34,230.29,6.95637628]
[1732683278995,6.95637628,230.34,230.12,116.3743616]
[1732683279196,6.95637628,230.34,230.25,6.95637628]
[1732683279197,2.1718,230.3,230.25,6.95637628]
[1732683280295,2.1718,230.3,230.22,2.1725]
[1732683280493,2.1718,230.3,230.25,6.95637628]
[1732683280801,2.1717,230.32,230.27,6.95637628]
[1732683281092,2.44,230.35,230.29,6.95637628]
[1732683281399,9.53637628,230.38,230.31,6.95637628]
[1732683281588,2.58,230.38,230.33,6.95637628]
[1732683282688,2.58,230.38,230.31,6.95637628]
[1732683282995,6.95637628,230.32,230.21,6.95637628]
[1732683283300,6.95637628,230.28,230.21,6.95637628]
[1732683283592,2.1722,230.26,230.21,6.95637628]
[1732683284596,6.95637628,230.28,230.21,6.95637628]
[1732683284796,6.95637628,230.26,230.16,0.29346]
[1732683284990,6.95637628,230.26,230.17,6.95637628]
[1732683285293,6.95637628,230.26,230.19,6.95637628]
[1732683286090,2.1723,230.25,230.19,6.95637628]
[1732683288094,6.95637628,230.26,230.17,6.95637628]
[1732683288397,9.12877628,230.24,230.17,6.95637628]
[1732683289600,9.12877628,230.24,230.16,2.46656]
[1732683289800,9.12877628,230.24,230.17,6.95637628]
[1732683290000,2.1724,230.24,230.17,6.95637628]
[1732683290301,2.1725,230.23,230.17,6.95637628]
[1732683290901,9.12877628,230.24,230.16,2.46656]
[1732683291103,6.95637628,230.24,230.17,6.95637628]
[1732683292102,6.95637628,230.22,230.16,0.29346]
[1732683292300,6.95637628,230.22,230.15,6.95637628]
[1732683293503,2.1726,230.21,230.14,4.7373]
[1732683293704,2.1726,230.21,230.15,6.95637628]
[1732683294398,2.1726,230.21,230.14,4.7373]
[1732683294605,2.1726,230.21,230.15,6.95637628]
[1732683295508,2.1726,230.21,230.15,9.12957628]
[1732683295806,9.12897628,230.22,230.15,9.12957628]
[1732683296202,6.95637628,230.24,230.17,9.12927628]
[1732683296398,6.95637628,230.24,230.17,6.95637628]
[1732683296807,6.95637628,230.24,230.17,9.12937628]
[1732683298316,9.12877628,230.24,230.17,9.12937628]
[1732683298815,6.95637628,230.24,230.17,6.95637628]
[1732683299813,9.12877628,230.24,230.17,6.95637628]
[1732683301021,2.1724,230.24,230.18,2.1729]
[1732683301523,2.1723,230.25,230.17,6.95637628]
[1732683301718,1.2438,230.31,230.17,6.95637628]
[1732683301922,6.95637628,230.26,230.17,6.95637628]
[1732683302220,6.95637628,230.26,230.19,2.1728]
[1732683302418,33.9,230.7,230.18,1.0]
[1732683302617,1.2603,230.57,230.28,6.95637628]
[1732683302820,2.1704,230.46,230.34,2.1714]
[1732683303018,3.39354847,230.57,230.34,2.1714]
[1732683303019,6.95637628,230.41,230.34,2.1714]
[1732683303314,2.58,230.42,230.3,6.95637628]
[1732683303519,6.95637628,230.4,230.32,2.1715]
[1732683303718,2.58,230.39,230.32,2.1715]
[1732683303923,2.58,230.39,230.26,2.16956371]
[1732683304116,1.33,230.56,230.25,2.58]
[1732683304322,10.85617625,230.55,230.4,10.85617625]
[1732683304525,2.58,230.54,230.4,10.85617625]
[1732683304719,2.58,230.54,230.45,2.1703]
[1732683305426,10.85617625,230.49,230.34,10.85617625]
[1732683305625,2.58,230.48,230.34,10.85617625]
[1732683305827,2.58,230.47,230.38,2.171]
[1732683307021,10.85617625,230.49,230.38,2.171]
[1732683307325,2.58,230.48,230.38,2.171]
[1732683308221,4.7501,230.48,230.38,2.171]
[1732683309327,2.1701,230.48,230.37,10.85617625]
[1732683309526,10.85617625,230.58,230.43,10.85617625]
[1732683309727,2.58,230.57,230.43,10.85617625]
[1732683310620,10.85617625,230.58,230.46,10.85617625]
[1732683310826,2.58,230.57,230.46,10.85617625]
[1732683311226,2.58,230.56,230.46,10.85617625]
[1732683311421,2.58,230.56,230.35,3.8322]
[1732683311422,10.85617625,230.55,230.35,3.8322]
[1732683311622,10.85617625,230.55,230.4,10.85617625]
[1732683312030,2.17,230.5,230.41,2.1707]
[1732683312225,2.58,230.49,230.4,10.85617625]
[1732683312730,10.85617625,230.55,230.4,10.85617625]
[1732683312926,2.58,230.54,230.35,3.8322]
[1732683313133,1.2906,230.62,230.35,3.8322]
[1732683313134,10.85617625,230.45,230.35,3.8322]
[1732683313424,2.1705,230.44,230.35,3.8322]
[1732683313625,2.58,230.43,230.36,10.85617625]
[1732683313827,10.85617625,230.48,230.36,10.85617625]
[1732683314027,2.58,230.47,230.36,10.85617625]
[1732683315320,2.1703,230.46,230.36,10.85617625]
[1732683315824,4.7504,230.45,230.36,13.02737625]
[1732683316024,2.58,230.44,230.36,10.85617625]
[1732683316225,2.58,230.43,230.35,3.8322]
[1732683316525,10.85617625,230.48,230.35,3.8322]
[1732683316526,2.1708,230.41,230.35,3.8322]
[1732683316726,2.58,230.4,230.35,2.4913]
[1732683317822,2.58,230.4,230.35,1.2409]
[1732683318224,2.58,230.4,230.3,10.85617625]
[1732683318832,2.58,230.4,230.27,10.85617625]
[1732683319230,10.85617625,230.39,230.27,10.85617625]
[1732683319428,2.58,230.38,230.25,1.2959]
[1732683319825,2.58,230.38,230.26,0.17436]
[1732683320425,13.44987625,230.42,230.27,10.85617625]
[1732683320730,2.58,230.41,230.27,10.85617625]
[1732683323232,2.1716,230.33,230.27,10.85617625]
[1732683323537,2.58,230.32,230.27,10.85617625]
[1732683323737,2.58,230.31,230.27,10.85617625]
[1732683323933,2.58,230.3,230.27,10.85617625]
[1732683324333,2.58,230.3,230.26,0.17436]
[1732683324334,2.1719,230.29,230.26,0.17436]
[1732683324635,2.58,230.3,230.26,0.17436]
[1732683324836,4.7519,230.3,230.26,0.17436]
[1732683325435,2.1719,230.29,230.26,0.17436]
[1732683325633,2.58,230.3,230.26,0.17436]
[1732683328642,2.1719,230.29,230.26,0.17436]
[1732683329244,2.5937,230.42,230.27,10.85617625]
[1732683329535,1.3223,230.41,230.27,10.85617625]
[1732683329739,3.9023,230.41,230.27,10.85617625]
[1732683330337,3.9023,230.41,230.27,13.02817625]
[1732683330544,2.58,230.4,230.27,13.02817625]
[1732683330839,1.3223,230.41,230.27,13.02817625]
[1732683331040,2.1713,230.36,230.28,2.172]
[1732683331432,2.58,230.4,230.27,10.85617625]
[1732683332235,13.43617625,230.4,230.26,0.17436]
[1732683332433,10.85617625,230.37,230.26,0.17436]
[1732683332632,2.1718,230.3,230.26,0.17436]
[1732683332833,2.58,230.29,230.26,0.17436]
[1732683337138,2.172,230.28,230.26,0.17436]
[1732683338238,2.58,230.29,230.26,0.17436]
[1732683338239,2.1721,230.27,230.26,0.17436]
[1732683340835,2.7,230.27,230.26,0.17436]
[1732683341042,2.7,230.28,230.26,0.17436]
[1732683341238,2.5993,230.33,230.26,0.17436]
[1732683341239,2.7,230.3,230.26,0.17436]
[1732683342242,2.7,230.3,230.25,10.85617625]
[1732683342639,4.8718,230.3,230.25,10.85617625]
[1732683343145,2.7,230.3,230.25,10.85617625]
[1732683344239,4.8718,230.3,230.25,10.85617625]
[1732683346539,2.1719,230.29,230.22,10.85617625]
[1732683346741,2.7,230.3,230.22,10.85617625]
[1732683347451,2.1719,230.29,230.22,10.85617625]
[1732683347947,2.1719,230.29,230.18,1.2598]
[1732683347948,2.1716,230.33,230.25,10.85617625]
[1732683348147,2.7,230.33,230.28,10.85617625]
[1732683348347,2.4494,230.41,230.28,10.85617625]
[1732683348547,2.7,230.4,230.28,10.85617625]
[1732683348744,2.4494,230.41,230.28,10.85617625]
[1732683348945,2.4494,230.41,230.32,2.1716]
[1732683349147,2.1709,230.39,230.32,2.1716]
[1732683349542,2.7,230.4,230.31,10.85617625]
[1732683350645,2.1714,230.34,230.28,10.85617625]
[1732683351039,4.8714,230.34,230.28,10.85617625]
[1732683353252,2.7,230.34,230.28,10.85617625]
[1732683354245,2.1716,230.32,230.28,10.85617625]
[1732683354650,2.7,230.34,230.28,10.85617625]
[1732683355548,2.1715,230.33,230.31,10.85617625]
[1732683355748,2.4494,230.41,230.31,10.85617625]
[1732683355953,2.7,230.4,230.31,10.85617625]
[1732683356150,2.4494,230.41,230.31,10.85617625]
[1732683356350,2.7,230.4,230.31,10.85617625]
[1732683356752,2.1712,230.37,230.31,10.85617625]
[1732683357145,4.8712,230.37,230.31,10.85617625]
[1732683357348,4.8712,230.37,230.31,13.02787625]
[1732683357951,2.7,230.37,230.31,13.02787625]
[1732683358148,2.7,230.37,230.23,1.298]
[1732683358348,2.7,230.37,230.32,10.85617625]
[1732683358749,2.7,230.37,230.32,13.02777625]
[1732683358952,2.7,230.37,230.32,10.85617625]
[1732683360051,2.7,230.37,230.32,13.02777625]
[1732683360255,2.171,230.39,230.32,13.02777625]
[1732683360457,2.7,230.38,230.32,13.02777625]
[1732683360857,2.4494,230.41,230.33,2.1715]
[1732683360858,2.1708,230.41,230.33,2.1715]
[1732683361059,2.1708,230.41,230.23,1.298]
[1732683361060,2.7,230.4,230.35,10.85617625]
[1732683361258,2.7,230.41,230.35,10.85617625]
[1732683361462,2.7,230.42,230.35,10.85617625]
[1732683361652,2.4658,230.47,230.35,10.85617625]
[1732683361857,2.7,230.46,230.35,10.85617625]
[1732683362957,2.1708,230.41,230.35,10.85617625]
[1732683363159,2.7,230.46,230.35,10.85617625]
[1732683364454,13.55617625,230.46,230.3,10.85617625]
[1732683365758,13.55617625,230.46,230.28,10.85617625]
[1732683365759,10.85617625,230.43,230.28,10.85617625]
[1732683366763,10.85617625,230.46,230.31,10.85617625]
[1732683366964,2.8,230.42,230.31,10.85617625]
[1732683367158,2.171,230.39,230.31,13.02777625]
[1732683367464,2.171,230.39,230.31,10.85617625]
[1732683368060,2.4658,230.47,230.34,10.85617625]
[1732683368258,2.8,230.42,230.34,10.85617625]
[1732683370463,2.8,230.42,230.34,13.02757625]
[1732683370859,2.4658,230.47,230.34,10.85617625]
[1732683371168,2.8,230.46,230.37,10.85617625]
[1732683373063,2.8,230.46,230.4,10.85617625]
[1732683373461,10.85617625,230.52,230.4,10.85617625]
[1732683373669,2.8,230.5,230.4,10.85617625]
[1732683374466,2.1702,230.47,230.4,10.85617625]
[1732683375269,2.1702,230.47,230.4,13.02697625]
[1732683375972,2.1703,230.46,230.4,13.02697625]
[1732683376275,2.8,230.5,230.4,13.02697625]
[1732683376477,18.80387845,230.49,230.4,13.02697625]
[1732683376667,2.1701,230.48,230.41,2.1707]
[1732683377374,2.8,230.49,230.4,10.85617625]
[1732683377575,2.1699,230.5,230.43,13.02667625]
[1732683377871,13.42727625,230.55,230.43,13.02667625]
[1732683377872,2.8,230.51,230.43,13.02667625]
[1732683378570,2.8,230.52,230.43,13.02667625]
[1732683378875,2.1698,230.51,230.43,13.02667625]
[1732683380574,2.8,230.52,230.4,10.85617625]
[1732683380769,13.65617625,230.52,230.37,14.65047625]
[1732683380970,13.65617625,230.52,230.37,3.7943]
[1732683380971,10.85617625,230.49,230.37,3.7943]
[1732683381175,10.85617625,230.49,230.37,2.5386]
[1732683381969,2.1706,230.43,230.37,2.5386]
[1732683385167,2.1707,230.42,230.37,2.5386]
[1732683386577,2.1707,230.42,230.37,4.7097]
[1732683388378,2.8,230.44,230.37,2.5386]
[1732683388577,2.8,230.44,230.4,2.1708]
[1732683388777,2.8,230.44,230.37,13.39477625]
[1732683389379,2.8,230.44,230.39,2.1709]
[1732683390279,2.1704,230.45,230.39,2.1709]
[1732683390578,4.9704,230.45,230.39,2.1709]
[1732683390880,4.9704,230.45,230.37,15.56577625]
[1732683390881,2.1704,230.45,230.37,15.56577625]
[1732683394087,2.8,230.47,230.37,13.39477625]
[1732683394290,2.8,230.47,230.34,10.85617625]
[1732683394483,8.73705866,230.46,230.34,10.85617625]
[1732683395088,2.1709,230.4,230.34,10.85617625]
[1732683396786,2.8,230.41,230.34,10.85617625]
[1732683396986,2.8,230.41,230.31,2.5475]
[1732683397185,2.8,230.41,230.31,13.40367625]
[1732683397388,2.1713,230.36,230.31,13.40367625]
[1732683397587,2.8,230.41,230.31,10.85617625]
[1732683397993,2.1712,230.37,230.31,10.85617625]
[1732683399492,2.8,230.41,230.31,10.85617625]
[1732683399687,2.8,230.41,230.29,1.2454]
[1732683399993,2.8,230.41,230.28,10.85617625]
[1732683400185,2.1714,230.34,230.28,10.85617625]
[1732683401193,2.62,230.35,230.31,10.85617625]
[1732683402393,2.62,230.39,230.34,10.85617625]
[1732683402586,2.62,230.4,230.34,10.85617625]
[1732683402783,2.1709,230.39,230.34,10.85617625]
[1732683403488,2.171,230.38,230.34,10.85617625]
[1732683404290,2.62,230.4,230.34,10.85617625]
[1732683404486,2.1709,230.39,230.34,10.85617625]
[1732683406391,2.1706,230.43,230.37,6.95278723]
[1732683406598,2.6132,230.45,230.39,6.95278723]
[1732683406599,2.62,230.42,230.39,6.95278723]
[1732683407097,2.62,230.44,230.39,6.95278723]
[1732683408197,2.62,230.45,230.41,6.95278723]
[1732683408399,2.62,230.45,230.39,2.1709]
[1732683408790,10.85876147,230.52,230.39,2.1709]
[1732683408995,10.85876147,230.52,230.38,10.85876147]
[1732683408996,2.1704,230.45,230.38,10.85876147]
[1732683409499,2.62,230.51,230.38,10.85876147]
[1732683409799,30.2297793,230.5,230.38,10.85876147]
[1732683409992,30.2297793,230.49,230.38,10.85876147]
[1732683410190,8.74830793,230.48,230.38,10.85876147]
[1732683410393,2.62,230.51,230.37,2.171]
[1732683410394,8.74830793,230.47,230.37,2.171]
[1732683410598,10.85876147,230.49,230.35,13.03006147]
[1732683410799,8.74839772,230.48,230.35,13.03006147]
[1732683411095,2.1706,230.44,230.35,10.85876147]
[1732683411291,2.62,230.45,230.35,10.85876147]
[1732683411696,2.1705,230.44,230.36,2.1712]
[1732683414100,2.1705,230.44,230.37,2.1711]
[1732683414899,2.62,230.45,230.35,10.85876147]
[1732683415205,2.62,230.45,230.38,2.171]
[1732683415802,4.7904,230.45,230.39,2.1709]
[1732683415997,2.62,230.45,230.36,2.5908]
[1732683417307,2.1706,230.43,230.37,2.1711]
[1732683418102,10.85876147,230.4,230.19,116.3743616]
[1732683418307,10.85876147,230.28,230.19,116.3743616]
[1732683418503,13.47876147,230.31,230.16,10.85876147]
[1732683418710,10.85876147,230.31,230.16,10.85876147]
[1732683419112,2.1722,230.26,230.17,2.62]
[1732683419405,10.85876147,230.28,230.13,10.85876147]
[1732683419612,10.85876147,230.28,230.14,2.62]
[1732683419911,10.85876147,230.25,230.14,2.62]
[1732683420108,10.85876147,230.25,230.15,2.62]
[1732683420312,2.1724,230.24,230.15,2.62]
[1732683421108,2.1725,230.23,230.15,2.62]
[1732683423508,2.1722,230.27,230.15,2.62]
[1732683423704,10.85876147,230.28,230.15,2.62]
[1732683424312,10.85876147,230.28,230.15,4.7932]
[1732683424707,10.85876147,230.25,230.15,4.7932]
[1732683426316,2.1724,230.24,230.15,4.7932]
[1732683428316,6.96509228,230.22,230.16,6.96509228]
[1732683433226,6.96509228,230.22,230.17,2.46]
[1732683434517,1.2301,230.32,230.21,6.96509228]
[1732683434713,6.96509228,230.26,230.19,6.96509228]
[1732683434922,6.96509228,230.22,230.18,2.46]
[1732683435122,6.96509228,230.22,230.17,6.96509228]
[1732683435123,2.1727,230.21,230.17,6.96509228]
[1732683435518,6.96509228,230.2,230.16,2.46]
[1732683435822,9.13789228,230.2,230.16,2.46]
[1732683436621,9.13789228,230.2,230.12,3.7574]
[1732683436822,9.13789228,230.2,230.14,6.96509228]
[1732683437122,9.13789228,230.2,230.15,2.46]
[1732683438723,2.1729,230.18,230.14,2.46]
[1732683438930,2.1729,230.18,230.14,9.42509228]
[1732683439732,2.1731,230.16,230.12,2.46]
[1732683442125,2.1725,230.23,230.13,6.96509228]
[1732683442325,2.46,230.27,230.15,6.96509228]
[1732683442523,2.46,230.28,230.17,6.96509228]
[1732683442824,6.96509228,230.25,230.17,6.96509228]
[1732683443026,3.6901,230.32,230.19,6.96509228]
[1732683443323,2.1724,230.24,230.19,6.96509228]
[1732683443922,6.96509228,230.23,230.18,2.46]
[1732683445721,2.1724,230.24,230.19,6.96509228]
[1732683448225,6.96509228,230.25,230.19,6.96509228]
[1732683448426,2.1725,230.23,230.19,6.96509228]
[1732683449131,2.1725,230.23,230.18,2.46]
[1732683450731,6.96509228,230.25,230.18,2.46]
[1732683451326,2.1726,230.21,230.18,2.46]
[1732683451539,2.1726,230.21,230.17,9.42509228]
[1732683452634,2.1728,230.2,230.15,6.96509228]
[1732683452839,2.1728,230.2,230.16,2.46]
[1732683453032,6.96509228,230.23,230.16,2.46]
[1732683453231,2.1728,230.2,230.16,2.46]
[1732683453634,2.1728,230.2,230.15,6.96509228]
[1732683453835,2.1728,230.2,230.15,9.42509228]
[1732683454539,2.1729,230.19,230.15,9.42509228]
[1732683455944,2.173,230.18,230.15,2.46]
[1732683456138,2.173,230.18,230.13,6.96509228]
[1732683456343,2.173,230.18,230.13,9.42509228]
[1732683456539,2.173,230.18,230.13,6.96509228]
[1732683456744,2.173,230.18,230.13,9.42509228]
[1732683457843,2.173,230.18,230.13,11.59849228]
[1732683458043,2.1727,230.2,230.15,6.96509228]
[1732683458242,6.96509228,230.23,230.15,6.96509228]
[1732683459638,6.96509228,230.23,230.17,6.96509228]
[1732683460643,6.96509228,230.23,230.15,6.96509228]
[1732683462145,2.1726,230.22,230.15,6.96509228]
[1732683462447,6.96509228,230.23,230.14,2.1733]
[1732683462448,6.96509228,230.23,230.16,6.96509228]
[1732683463344,2.1727,230.21,230.16,6.96509228]
[1732683463846,2.1727,230.21,230.14,9.13839228]
[1732683464242,2.1727,230.21,230.14,2.1733]
[1732683464447,2.1727,230.21,230.14,9.13839228]
[1732683470842,2.1727,230.21,230.16,6.96509228]
[1732683471241,2.1725,230.23,230.18,6.96509228]
[1732683471453,1.2301,230.32,230.2,6.96509228]
[1732683471647,1.2301,230.32,230.16,6.96509228]
[1732683471648,6.96509228,230.23,230.16,6.96509228]
[1732683471853,2.1725,230.22,230.16,6.96509228]
[1732683472254,6.96509228,230.23,230.16,6.96509228]
[1732683472651,2.1726,230.21,230.16,6.96509228]
[1732683472953,6.96509228,230.23,230.16,6.96509228]
[1732683473157,6.96509228,230.23,230.16,9.42509228]
[1732683473551,2.1726,230.22,230.16,9.42509228]
[1732683475757,1.2301,230.32,230.19,9.13789228]
[1732683475957,6.96509228,230.28,230.21,6.96509228]
[1732683476559,9.13739228,230.26,230.21,6.96509228]
[1732683477157,2.1723,230.25,230.21,6.96509228]
[1732683478165,6.96509228,230.22,230.14,2.46]
[1732683478362,6.96509228,230.22,230.15,6.96509228]
[1732683478762,9.13769228,230.22,230.15,6.96509228]
[1732683479357,6.96509228,230.24,230.17,6.96509228]
[1732683479866,2.1726,230.22,230.17,6.96509228]
[1732683480164,6.96509228,230.24,230.17,6.96509228]
[1732683481164,2.1726,230.22,230.17,6.96509228]
[1732683483359,6.96509228,230.24,230.17,6.96509228]
[1732683483559,2.1726,230.22,230.17,6.96509228]
[1732683485160,2.1726,230.22,230.19,6.96509228]
[1732683486864,6.96509228,230.26,230.18,6.96509228]
[1732683487063,8.76142222,230.25,230.18,6.96509228]
[1732683488662,2.1726,230.22,230.14,4.6333]
[1732683488862,2.1726,230.22,230.17,6.96509228]
[1732683490864,2.1726,230.22,230.19,6.96509228]
[1732683491956,6.96509228,230.22,230.14,6.96509228]
[1732683492867,2.1729,230.19,230.14,6.96509228]
[1732683493065,2.1729,230.19,230.16,6.96509228]
[1732683495673,2.1729,230.19,230.12,4.6335]
[1732683495864,2.1729,230.19,230.16,6.96509228]
[1732683496266,6.96509228,230.22,230.16,6.96509228]
[1732683496570,2.1729,230.18,230.15,6.96509228]
[1732683497176,2.1729,230.18,230.12,2.46]
[1732683497177,6.96509228,230.22,230.12,2.46]
[1732683497373,2.173,230.17,230.11,0.16898]
[1732683497573,2.173,230.17,230.12,6.96509228]
[1732683500673,6.96509228,230.2,230.12,6.96509228]
[1732683501574,2.1731,230.17,230.12,6.96509228]
[1732683501775,2.1731,230.17,230.14,6.96509228]
[1732683502170,2.46,230.27,229.82,6.06097598]
[1732683502171,2.1747,230.0,229.82,6.06097598]
[1732683502371,2.46,230.03,229.93,6.96509228]
[1732683502577,2.20688957,230.12,229.95,6.96509228]
[1732683502879,2.174,230.07,229.99,6.96509228]
[1732683503271,6.96509228,230.0,229.93,3.7561]
[1732683503481,6.96509228,229.96,229.93,3.7561]
[1732683503773,2.175,229.96,229.88,6.96509228]
[1732683503978,2.46,230.04,229.94,6.96509228]
[1732683504475,2.1746,230.01,229.94,6.96509228]
[1732683505272,2.1746,230.01,229.93,6.96509228]
[1732683505578,2.1747,229.99,229.93,6.96509228]
[1732683505780,2.1747,229.99,229.92,1.2522]
[1732683505978,2.1747,229.99,229.92,8.21729228]
[1732683506881,21.98652415,230.11,229.94,6.96509228]
[1732683507080,6.96509228,230.03,229.94,6.96509228]
[1732683507381,6.96509228,230.03,229.96,6.96509228]
[1732683507582,9.13949228,230.03,229.96,6.96509228]
[1732683508283,2.1745,230.02,229.96,6.96509228]
[1732683508476,6.96509228,230.01,229.93,2.5385]
[1732683508675,6.96509228,230.01,229.93,1.3293]
[1732683508988,6.96509228,230.03,229.94,6.96509228]
[1732683509482,6.96509228,230.03,229.96,6.96509228]
[1732683509683,2.1746,230.01,229.96,6.96509228]
[1732683510581,2.1744,230.03,229.96,6.96509228]
[1732683511174,2.46,230.04,229.96,6.96509228]
[1732683511374,2.46,230.06,229.98,6.96509228]
[1732683511593,9.42509228,230.07,229.98,6.96509228]
[1732683512380,2.1742,230.05,230.0,6.96509228]
[1732683512885,2.1743,230.04,230.0,6.96509228]
[1732683513581,2.1743,230.04,229.93,1.3293]
[1732683513883,2.1743,230.04,229.98,6.96509228]